fUSD/lending_fUSD_20250523
["ID","MTS","AMOUNT","RATE_DAILY","PERIOD"]
[362160564,1748042959231,-5995.0262564,0.00018972,2]
[362160565,1748042959295,420.0,0.0004255,120]
[362160566,1748042959664,470.9,0.0004255,120]
[362160567,1748042959921,470.9,0.0004255,120]
[362160568,1748042960158,470.9,0.0004255,120]
[362160569,1748042960402,470.9,0.0004255,120]
[362160570,1748042960689,470.9,0.0004255,120]
[362160571,1748042960903,470.9,0.0004255,120]
[362160572,1748042961148,470.9,0.0004255,120]
[362160573,1748042961212,422.16878154,0.0004255,120]
[362160574,1748042961417,470.9,0.0004255,120]
[362160575,1748042961700,470.9,0.0004255,120]
[362160576,1748042961950,470.9,0.0004255,120]
[362160577,1748042962211,470.9,0.0004255,120]
[362160578,1748042962466,470.91049833,0.0004255,120]
[362160579,1748042963915,420.0,0.0004255,120]
[362160580,1748042964021,420.0,0.0004255,120]
[362160581,1748042964176,420.0,0.0004255,120]
[362160582,1748042964297,420.0,0.0004255,120]
[362160583,1748042964354,420.0,0.0004255,120]
[362160584,1748042964559,518.63357127,0.0004255,120]
[362160585,1748042964710,429.84090244,0.0004255,120]
[362160586,1748042966091,-744.45036707,0.00018972,2]
[362160587,1748042966173,420.0,0.0004255,120]
[362160588,1748042966424,420.0,0.0004255,120]
[362160589,1748042966682,420.0,0.0004255,120]
[362160590,1748042966925,420.0,0.0004255,120]
[362160591,1748042967165,420.0,0.0004255,120]
[362160592,1748042967423,420.0,0.0004255,120]
[362160593,1748042967672,420.0,0.0004255,120]
[362160594,1748042967920,420.0,0.0004255,120]
[362160595,1748042968154,420.0,0.0004255,120]
[362160596,1748042968471,420.0,0.0004255,120]
[362160597,1748042968734,420.0,0.0004255,120]
[362160598,1748042968966,420.0,0.0004255,120]
[362160599,1748042969039,420.0,0.0004255,120]
[362160600,1748042969087,-2971.860976,0.00018972,2]
[362160601,1748042969204,420.0,0.0004255,120]
[362160602,1748042969274,420.0,0.0004255,120]
[362160603,1748042969449,420.0,0.0004255,120]
[362160604,1748042969534,420.0,0.0004255,120]
[362160605,1748042969687,207.35,0.0004255,120]
[362160606,1748042969747,183.45183663,0.0004255,120]
[362160607,1748042969805,420.0,0.0004255,120]
[362160608,1748042970022,420.0,0.0004255,120]
[362160609,1748042970270,538.4036484,0.0004255,120]
[362160610,1748042970851,420.0,0.0004255,120]
[362160611,1748042971106,420.0,0.0004255,120]
[362160612,1748042971139,-614.5496504,0.00018972,2]
[362160613,1748042971571,420.0,0.0004255,120]
[362160614,1748042973400,420.0,0.0004255,120]
[362160615,1748042974355,420.0,0.0004255,120]
[362160616,1748042974630,420.0,0.0004255,120]
[362160617,1748042974932,420.0,0.0004255,120]
[362160618,1748042975578,420.0,0.0004255,120]
[362160619,1748042975635,420.0,0.0004255,120]
[362160620,1748042975698,420.0,0.0004255,120]
[362160621,1748042975754,420.0,0.0004255,120]
[362160622,1748042975962,420.0,0.0004255,120]
[362160623,1748042976242,420.0,0.0004255,120]
[362160624,1748042976553,420.0,0.0004255,120]
[362160625,1748042976806,420.0,0.0004255,120]
[362160626,1748042977069,420.0,0.0004255,120]
[362160627,1748042977316,420.0,0.0004255,120]
[362160628,1748042977564,420.0,0.0004255,120]
[362160629,1748042977815,420.0,0.0004255,120]
[362160630,1748042978063,420.0,0.0004255,120]
[362160631,1748042978312,420.0,0.0004255,120]
[362160632,1748042978732,333.84,0.0004255,120]
[362160633,1748042979680,420.0,0.0004255,120]
[362160634,1748042980192,420.0,0.0004255,120]
[362160635,1748042981624,421.26510993,0.0004255,120]
[362160636,1748042982112,420.0,0.0004255,120]
[362160637,1748042982363,420.0,0.0004255,120]
[362160638,1748042983475,420.0,0.0004255,120]
[362160639,1748042984148,420.0,0.0004255,120]
[362160640,1748042984396,455.61,0.0004255,120]
[362160641,1748042985370,420.0,0.0004255,120]
[362160643,1748042991376,420.0,0.0004255,120]
[362160644,1748042991485,183.86,0.0004255,120]
[362160645,1748042993379,420.0,0.0004255,120]
[362160646,1748042997331,420.0,0.0004255,120]
[362160647,1748043004888,420.0,0.0004255,120]
[362160648,1748043017365,420.0,0.0004255,120]
[362160649,1748043017929,420.0,0.0004255,120]
[362160650,1748043020138,420.0,0.0004255,120]
[362160651,1748043020368,420.0,0.0004255,120]
[362160652,1748043020607,420.0,0.0004255,120]
[362160653,1748043020837,420.0,0.0004255,120]
[362160654,1748043021074,420.0,0.0004255,120]
[362160655,1748043021322,420.0,0.0004255,120]
[362160656,1748043021554,163.83071329,0.0004255,120]
[362160657,1748043025323,420.0,0.0004255,120]
[362160658,1748043025598,518.33687432,0.0004255,120]
[362160659,1748043027822,254.58,0.0004255,120]
[362160660,1748043028596,420.0,0.0004255,120]
[362160661,1748043030622,420.0,0.0004255,120]
[362160663,1748043031462,-3145.04349243,0.00018972,2]
[362160665,1748043031477,-3827.40151439,0.00018972,2]
[362160668,1748043031497,-213.67774331,0.00018972,2]
[362160669,1748043031507,-237.88821359,0.00019186,2]
[362160670,1748043031518,-200.0,0.00019286,2]
[362160671,1748043031527,-352.175271,0.00019599,2]
[362160672,1748043031537,-1200.0,0.00019599,2]
[362160673,1748043031546,-433.60049039,0.000196,2]
[362160674,1748043031556,-400.0,0.000196,7]
[362160675,1748043031566,-800.0,0.000197,7]
[362160676,1748043031575,-300.0,0.00019763,2]
[362160677,1748043031585,-337.52800041,0.00019764,2]
[362160678,1748043031597,-180.86199959,0.00019764,2]
[362160679,1748043031616,-2330.39,0.00019764,2]
[362160680,1748043031629,-456.41611617,0.000198,7]
[362160681,1748043031641,-743.58388383,0.000198,7]
[362160682,1748043031651,-1809.74612534,0.00019846,2]
[362160683,1748043031664,-2002.65164984,0.00019846,2]
[362160684,1748043031676,-199.88222482,0.00019846,2]
[362160685,1748043031686,-150.0,0.00019899,2]
[362160686,1748043031696,-450.01592029,0.000199,2]
[362160687,1748043031707,-1600.0,0.000199,7]
[362160688,1748043031716,-540.06571149,0.000199,2]
[362160689,1748043031729,-162.49015631,0.000199,2]
[362160690,1748043031739,-165.07001379,0.000199,2]
[362160691,1748043031749,-1820.45453298,0.000199,2]
[362160692,1748043031759,-19617.58376888,0.000199,2]
[362160693,1748043031769,-4127.75,0.00019955,2]
[362160694,1748043031778,-250.0,0.00019955,2]
[362160695,1748043031788,-4127.75,0.0001996,2]
[362160696,1748043031798,-4127.75,0.00019966,2]
[362160697,1748043031807,-4127.75,0.00019971,2]
[362160698,1748043031818,-500.0,0.00019973,2]
[362160699,1748043031827,-151.85670533,0.00019973,2]
[362160700,1748043031837,-4127.75,0.00019976,2]
[362160701,1748043031847,-4127.75,0.00019981,2]
[362160702,1748043031855,-1329.69079548,0.00019987,2]
[362160704,1748043031873,-389.2479066,0.0001998,2]
[362160706,1748043031883,-382.33839279,0.00019987,2]
[362160708,1748043031895,-388.00883751,0.00019987,2]
[362160709,1748043031907,-574.42573208,0.00019987,2]
[362160710,1748043032126,-598.20233049,0.00019987,2]
[362160712,1748043032139,-855.08391165,0.00019987,2]
[362160714,1748043032149,-151.06,0.0001999,2]
[362160716,1748043032158,-151.06,0.0001999,2]
[362160718,1748043032168,-795.52204122,0.00019992,2]
[362160720,1748043032180,-3332.22795878,0.00019992,2]
[362160722,1748043032190,-4127.75,0.00019997,2]
[362160724,1748043032200,-669.08576266,0.00019999,2]
[362160726,1748043032210,-4278.36618716,0.00019999,2]
[362160728,1748043032219,-296.97,0.00019999,2]
[362160730,1748043032229,-245.7792442,0.00019999,2]
[362160732,1748043032238,-12036.50923721,0.0002,2]
[362160733,1748043032254,-308386.55677611,0.0002,2]
[362160734,1748043032265,-3088.97329327,0.0002,2]
[362160735,1748043032276,-322500.0,0.0002,2]
[362160736,1748043032287,-11447.01759136,0.0002,2]
[362160737,1748043032298,-10707.53407943,0.0002,2]
[362160738,1748043032309,-8562.60597809,0.0002,2]
[362160739,1748043032668,420.0,0.0004255,120]
[362160740,1748043032920,420.0,0.0004255,120]
[362160741,1748043033288,373.51,0.0004255,120]
[362160742,1748043033355,420.0,0.0004255,120]
[362160743,1748043034467,420.0,0.0004255,120]
[362160744,1748043034524,420.0,0.0004255,120]
[362160745,1748043034849,420.0,0.0004255,120]
[362160746,1748043035096,420.0,0.0004255,120]
[362160747,1748043035332,420.0,0.0004255,120]
[362160748,1748043035477,420.0,0.0004255,120]
[362160749,1748043035609,420.0,0.0004255,120]
[362160750,1748043035666,420.0,0.0004255,120]
[362160751,1748043035918,420.0,0.0004255,120]
[362160752,1748043036196,420.0,0.0004255,120]
[362160753,1748043036536,454.32473445,0.0004255,120]
[362160756,1748043037464,420.0,0.0004255,120]
[362160757,1748043037654,-160.78604011,0.0001999,2]
[362160758,1748043037663,-139.21395989,0.0002,2]
[362160759,1748043037699,-22339.96825414,0.0002,2]
[362160760,1748043037710,-106008.1,0.0002,2]
[362160761,1748043037738,-4116.1413157,0.0002,2]
[362160762,1748043037846,-28471.52460018,0.0002,2]
[362160763,1748043037983,-104697.62609836,0.0002,2]
[362160773,1748043039683,-245866.45860192,0.0002,2]
[362160774,1748043039696,-5282.15871827,0.0002,2]
[362160775,1748043039727,-35326.14741211,0.0002,2]
[362160776,1748043039787,-19252.63418637,0.0002,2]
[362160777,1748043039918,420.0,0.0004255,120]
[362160778,1748043039931,-21314.01966718,0.0002,2]
[362160779,1748043039942,-4461.70596733,0.0002,2]
[362160780,1748043041005,420.0,0.0004255,120]
[362160781,1748043041880,420.0,0.0004255,120]
[362160782,1748043042160,420.0,0.0004255,120]
[362160793,1748043042530,420.0,0.0004255,120]
[362160797,1748043042628,-201181.52198959,0.0002,2]
[362160798,1748043042651,-858.6849167,0.0002,2]
[362160799,1748043042908,-15858.25564166,0.0002,2]
[362160800,1748043042920,-268.61,0.0002,2]
[362160801,1748043043452,420.0,0.0004255,120]
[362160802,1748043043544,420.0,0.0004255,120]
[362160803,1748043043601,420.0,0.0004255,120]
[362160804,1748043043799,420.0,0.0004255,120]
[362160805,1748043043857,518.92,0.0004255,120]
[362160806,1748043043920,420.0,0.0004255,120]
[362160807,1748043044041,420.0,0.0004255,120]
[362160808,1748043044165,420.0,0.0004255,120]
[362160809,1748043044240,420.0,0.0004255,120]
[362160810,1748043044296,198.7265455,0.0004255,120]
[362160811,1748043045450,-586.7187265,0.0002,2]
[362160812,1748043045580,-5967.30638177,0.0002,2]
[362160813,1748043045591,-33490.21234996,0.0002,2]
[362160814,1748043045763,-6600.46876993,0.0002,2]
[362160815,1748043045775,-2525.6,0.0002,2]
[362160816,1748043045786,-115686.26528137,0.0002,2]
[362160817,1748043045802,-3010.22088828,0.0002,2]
[362160818,1748043045864,420.0,0.0004255,120]
[362160819,1748043045878,-5107.5348119,0.0002,2]
[362160820,1748043045890,-2849.31,0.0002,2]
[362160821,1748043045901,-804.09094297,0.0002,2]
[362160829,1748043046123,-3814.37641749,0.0002,2]
[362160833,1748043046160,-1483.64367228,0.0002,2]
[362160836,1748043046174,-645.07203151,0.0002,2]
[362160838,1748043046186,-500.0,0.0002,2]
[362160845,1748043046245,420.0,0.0004255,120]
[362160852,1748043046304,420.0,0.0004255,120]
[362160859,1748043046366,420.0,0.0004255,120]
[362160866,1748043046429,420.0,0.0004255,120]
[362160873,1748043046488,420.0,0.0004255,120]
[362160881,1748043046561,420.0,0.0004255,120]
[362160889,1748043046627,420.0,0.0004255,120]
[362160902,1748043046753,420.0,0.0004255,120]
[362160928,1748043047007,420.0,0.0004255,120]
[362160955,1748043047280,514.38701406,0.0004255,120]
[362161285,1748043050663,420.0,0.0004255,120]
[362161409,1748043052065,420.0,0.0004255,120]
[362161436,1748043052328,420.0,0.0004255,120]
[362161530,1748043054142,420.0,0.0004255,120]
[362161531,1748043054295,420.0,0.0004255,120]
[362161532,1748043054733,420.0,0.0004255,120]
[362161533,1748043055783,420.0,0.0004255,120]
[362161534,1748043056073,420.0,0.0004255,120]
[362161535,1748043057194,420.0,0.0004255,120]
[362161536,1748043057356,420.0,0.0004255,120]
[362161537,1748043057967,420.0,0.0004255,120]
[362161538,1748043058212,420.0,0.0004255,120]
[362161539,1748043059089,420.0,0.0004255,120]
[362161540,1748043059231,420.0,0.0004255,120]
[362161541,1748043060199,165.72844838,0.0004255,120]
[362161542,1748043061166,420.0,0.0004255,120]
[362161543,1748043061226,443.22,0.0004255,120]
[362161544,1748043063197,420.0,0.0004255,120]
[362161545,1748043064725,420.0,0.0004255,120]
[362161546,1748043065261,370.79,0.0004255,120]
[362161547,1748043065940,420.0,0.0004255,120]
[362161548,1748043068758,420.0,0.0004255,120]
[362161549,1748043070895,420.0,0.0004255,120]
[362161550,1748043071140,420.0,0.0004255,120]
[362161551,1748043071380,420.0,0.0004255,120]
[362161552,1748043073547,420.0,0.0004255,120]
[362161553,1748043073629,420.0,0.0004255,120]
[362161554,1748043074952,420.0,0.0004255,120]
[362161555,1748043075503,420.0,0.0004255,120]
[362161556,1748043076943,420.0,0.0004255,120]
[362161557,1748043077588,420.0,0.0004255,120]
[362161558,1748043077827,420.0,0.0004255,120]
[362161559,1748043078090,420.0,0.0004255,120]
[362161560,1748043078941,420.0,0.0004255,120]
[362161561,1748043081247,289.62,0.0004255,120]
[362161562,1748043081543,420.0,0.0004255,120]
[362161563,1748043081796,514.94,0.0004255,120]
[362161564,1748043082035,157.86987223,0.0004255,120]
[362161565,1748043082639,420.0,0.0004255,120]
[362161566,1748043085745,420.0,0.0004255,120]
[362161567,1748043087880,298.83168386,0.0004255,120]
[362161568,1748043089500,420.0,0.0004255,120]
[362161569,1748043089741,420.0,0.0004255,120]
[362161570,1748043090070,420.0,0.0004255,120]
[362161571,1748043090240,420.0,0.0004255,120]
[362161572,1748043090328,420.0,0.0004255,120]
[362161573,1748043090537,420.0,0.0004255,120]
[362161574,1748043090592,420.0,0.0004255,120]
[362161575,1748043090823,420.0,0.0004255,120]
[362161576,1748043091069,420.0,0.0004255,120]
[362161577,1748043091320,420.0,0.0004255,120]
[362161578,1748043091596,420.0,0.0004255,120]
[362161579,1748043091849,420.0,0.0004255,120]
[362161580,1748043091906,199.42518839,0.0004255,120]
[362161581,1748043092095,420.0,0.0004255,120]
[362161582,1748043092345,420.0,0.0004255,120]
[362161583,1748043092594,420.0,0.0004255,120]
[362161584,1748043092847,420.0,0.0004255,120]
[362161585,1748043093114,245.12,0.0004255,120]
[362161586,1748043098043,250.0,0.0004255,120]
[362161587,1748043098288,250.0,0.0004255,120]
[362161589,1748043105156,420.0,0.0004255,120]
[362161590,1748043105337,420.0,0.0004255,120]
[362161591,1748043105577,420.0,0.0004255,120]
[362161592,1748043105819,420.0,0.0004255,120]
[362161593,1748043106062,420.0,0.0004255,120]
[362161594,1748043106311,420.0,0.0004255,120]
[362161595,1748043106892,420.0,0.0004255,120]
[362161596,1748043107159,420.0,0.0004255,120]
[362161597,1748043107403,353.25810959,0.0004255,120]
[362161598,1748043109383,238.24,0.0004255,120]
[362161599,1748043114500,408.3,0.0004255,120]
[362161600,1748043114572,388.8,0.0004255,120]
[362161601,1748043115957,269.84,0.0004255,120]
[362161602,1748043124799,203.43737358,0.0004255,120]
[362161603,1748043124949,420.0,0.0004255,120]
[362161604,1748043125193,191.30258479,0.0004255,120]
[362161605,1748043126526,200.0,0.0004255,120]
[362161606,1748043127205,207.4,0.0004255,120]
[362161607,1748043127845,215.0738,0.0004255,120]
[362161608,1748043129000,223.0315306,0.0004255,120]
[362161609,1748043129678,231.28369723,0.0004255,120]
[362161610,1748043130322,239.84119403,0.0004255,120]
[362161611,1748043130650,420.0,0.0004255,120]
[362161612,1748043130942,420.0,0.0004255,120]
[362161613,1748043131008,248.71531821,0.0004255,120]
[362161614,1748043131187,420.0,0.0004255,120]
[362161615,1748043131433,420.0,0.0004255,120]
[362161616,1748043131584,257.91778498,0.0004255,120]
[362161617,1748043132070,320.0,0.0004255,120]
[362161618,1748043132242,267.46074303,0.0004255,120]
[362161619,1748043132887,277.35679052,0.0004255,120]
[362161620,1748043134068,287.61899177,0.0004255,120]
[362161621,1748043134706,298.26089446,0.0004255,120]
[362161622,1748043135371,309.29654756,0.0004255,120]
[362161623,1748043136037,320.74051982,0.0004255,120]
[362161624,1748043136846,332.60791905,0.0004255,120]
[362161625,1748043137505,344.91441206,0.0004255,120]
[362161626,1748043137932,420.0,0.0004255,120]
[362161627,1748043138167,357.6762453,0.0004255,120]
[362161628,1748043138230,420.0,0.0004255,120]
[362161629,1748043138433,405.36,0.0004255,120]
[362161630,1748043138824,370.91026638,0.0004255,120]
[362161631,1748043139820,384.63394623,0.0004255,120]
[362161632,1748043140091,384.63394623,0.0004255,120]
[362161633,1748043141607,368.52390674,0.0004255,120]
[362161634,1748043148470,420.0,0.0004255,120]
[362161635,1748043148714,219.95,0.0004255,120]
[362161636,1748043158267,201.35,0.0004255,120]
[362161637,1748043170802,2000.0,0.0004255,120]
[362161638,1748043202528,420.0,0.0004255,120]
[362161639,1748043232719,925.0,0.0004255,60]
[362161640,1748043281024,741.09829403,0.0004255,120]
[362161641,1748043281563,204.84107877,0.0004255,120]
[362161642,1748043287934,420.0,0.0004255,120]
[362161643,1748043298492,420.0,0.0004255,120]
[362161644,1748043305519,384.52655559,0.0004255,120]
[362161645,1748043312249,420.0,0.00042549,120]
[362161646,1748043312354,420.0,0.00042549,120]
[362161647,1748043312492,187.12586059,0.00042549,120]
[362161648,1748043323695,420.0,0.00042549,120]
[362161649,1748043323965,420.0,0.00042549,120]
[362161650,1748043324223,256.64,0.00042549,120]
[362161651,1748043339926,420.0,0.00042549,120]
[362161652,1748043343011,203.23,0.00042549,120]
[362161653,1748043345027,422.90375572,0.00042549,120]
[362161654,1748043347541,538.77048822,0.00042549,120]
[362161655,1748043371352,421.45603489,0.00042549,120]
[362161656,1748043376507,420.0,0.00042549,120]
[362161657,1748043384856,420.0,0.00042549,120]
[362161658,1748043385182,420.0,0.00042549,120]
[362161659,1748043385416,420.0,0.00042549,120]
[362161660,1748043385665,327.85615459,0.00042549,120]
[362161661,1748043407388,231.32751393,0.00042549,120]
[362161662,1748043428138,200.0,0.00042549,120]
[362161663,1748043428814,207.4,0.00042549,120]
[362161664,1748043429465,215.0738,0.00042549,120]
[362161665,1748043430634,223.0315306,0.00042549,120]
[362161666,1748043431290,223.0315306,0.00042549,120]
[362161667,1748043594010,590.0,0.00042549,120]
[362161668,1748043680114,420.0,0.00042536,120]
[362161669,1748043680407,420.0,0.00042536,120]
[362161670,1748043680658,420.0,0.00042536,120]
[362161671,1748043680910,420.0,0.00042536,120]
[362161672,1748043681153,420.0,0.00042536,120]
[362161673,1748043681471,420.0,0.00042536,120]
[362161674,1748043681719,420.0,0.00042536,120]
[362161675,1748043682003,420.0,0.00042536,120]
[362161676,1748043682244,420.0,0.00042536,120]
[362161677,1748043682501,420.0,0.00042536,120]
[362161678,1748043682756,420.0,0.00042536,120]
[362161679,1748043683010,380.0,0.00042536,120]
[362161680,1748043798921,1400.27,0.00024775,120]
[362161681,1748043799135,1400.27,0.00027027,120]
[362161682,1748043832031,159.63,0.00042536,60]
[362161683,1748043892734,10000.0,0.00042536,60]
[362161684,1748043954994,420.0,0.00042536,120]
[362161685,1748043955115,420.0,0.00042536,120]
[362161686,1748043955393,420.0,0.00042536,120]
[362161687,1748043955662,285.68922233,0.00042536,120]
[362161688,1748043959013,420.0,0.00042536,120]
[362161689,1748043959692,420.0,0.00042536,120]
[362161690,1748043959897,420.0,0.00042536,120]
[362161691,1748043960147,420.0,0.00042536,120]
[362161692,1748043960392,420.0,0.00042536,120]
[362161693,1748043960631,420.0,0.00042536,120]
[362161694,1748043960947,420.0,0.00042536,120]
[362161695,1748043961192,420.0,0.00042536,120]
[362161696,1748043961457,420.0,0.00042536,120]
[362161697,1748043961772,420.0,0.00042536,120]
[362161698,1748043962012,197.3509707,0.00042536,120]
[362161700,1748043994787,420.0,0.00042536,120]
[362161701,1748043995028,420.0,0.00042536,120]
[362161702,1748043995287,420.0,0.00042536,120]
[362161703,1748043996408,420.0,0.00042536,120]
[362161704,1748043996464,420.0,0.00042536,120]
[362161705,1748043996520,242.79,0.00042536,120]
[362161706,1748044035132,-185.5,0.00016712,2]
[362161707,1748044035155,-200.0,0.0001687,2]
[362161708,1748044035176,-645.99429802,0.00017028,2]
[362161709,1748044091369,420.0,0.00042536,120]
[362161710,1748044091619,420.0,0.00042536,120]
[362161711,1748044091919,420.0,0.00042536,120]
[362161712,1748044092535,420.0,0.00042536,120]
[362161713,1748044092800,187.43,0.00042536,120]
[362161714,1748044103561,302.6,0.00027397,120]
[362161715,1748044114696,150.0,0.00042536,120]
[362161716,1748044150103,-178.37963864,0.00017028,2]
[362161717,1748044150128,-200.0,0.00017028,2]
[362161718,1748044150150,-1110.44570198,0.00017028,2]
[362161719,1748044150173,-200.0,0.00017271,2]
[362161720,1748044150194,-165.48514611,0.0001742,2]
[362161721,1748044150214,-1000.0,0.0001752,2]
[362161722,1748044150235,-500.0,0.00017549,2]
[362161723,1748044150256,-167.71,0.00017609,2]
[362161724,1748044150276,-150.0,0.00017633,2]
[362161725,1748044150297,-178.37963864,0.00017633,2]
[362161726,1748044150319,-561.61,0.00017702,2]
[362161727,1748044150571,-200.0,0.00017956,2]
[362161728,1748044150593,-150.0,0.00018,7]
[362161729,1748044150614,-178.37963864,0.00018018,2]
[362161730,1748044150637,-1400.27,0.00018018,2]
[362161731,1748044150658,-1200.0,0.00018051,2]
[362161732,1748044150680,-300.0,0.00018051,2]
[362161733,1748044150700,-12115.64,0.00018052,2]
[362161734,1748044150721,-957.0,0.0001816,2]
[362161735,1748044150741,-444.13,0.00018333,2]
[362161736,1748044150762,-250.0,0.00018384,2]
[362161737,1748044150782,-200.0,0.00018384,2]
[362161738,1748044150803,-250.0,0.00018384,2]
[362161739,1748044150824,-859.59868521,0.000184,2]
[362161740,1748044150844,-150.09,0.00018409,2]
[362161741,1748044150865,-326.78,0.00018429,2]
[362161742,1748044150885,-206.0,0.00018453,2]
[362161743,1748044150905,-665.63,0.00018466,2]
[362161744,1748044150927,-152.81,0.00018497,2]
[362161745,1748044150947,-300.0,0.00018512,2]
[362161746,1748044150969,-23900.0,0.00018512,2]
[362161747,1748044150990,-165.93,0.00018538,2]
[362161748,1748044151011,-1040.59,0.00018564,2]
[362161749,1748044151032,-19644.51425078,0.00018569,2]
[362161750,1748044165323,-731.21144787,0.00018569,2]
[362161751,1748044165346,-619.80755807,0.00018573,2]
[362161752,1748044165371,-500.0,0.00018573,2]
[362161753,1748044165393,-272.86357278,0.00018573,2]
[362161754,1748044165417,-23213.97768184,0.00018593,2]
[362161755,1748044165448,-238.0,0.00018603,2]
[362161756,1748044165473,-314.41,0.00018654,2]
[362161757,1748044165496,-200.0,0.00018723,2]
[362161758,1748044165520,-250.0,0.00018731,2]
[362161759,1748044165544,-200.0,0.00018731,2]
[362161760,1748044165566,-9546.67,0.00018766,2]
[362161761,1748044165588,-10074.96358596,0.00018972,2]
[362161762,1748044165611,-18955.94478882,0.00018973,2]
[362161763,1748044165632,-160.56,0.00019004,2]
[362161764,1748044165657,-2751.0,0.00019013,2]
[362161765,1748044165682,-2183.22,0.00019026,2]
[362161766,1748044165703,-172.04547094,0.00019036,2]
[362161767,1748044165726,-92698.17,0.00019037,2]
[362161768,1748044165748,-502.28145813,0.00019073,2]
[362161769,1748044165770,-153.02023607,0.00019073,2]
[362161770,1748044165791,-500.0,0.00019073,2]
[362161771,1748044165812,-500.0,0.00019073,2]
[362161772,1748044165839,-500.0,0.00019096,2]
[362161773,1748044165861,-1243.96,0.00019178,2]
[362161774,1748044165884,-182.36,0.00019178,2]
[362161775,1748044165907,-1756.44,0.00019292,2]
[362161776,1748044165933,-585.55226982,0.00019508,2]
[362161777,1748044165956,-152.69,0.00019556,2]
[362161778,1748044165980,-666.423738,0.00019599,2]
[362161779,1748044166002,-527.46595427,0.00019621,2]
[362161780,1748044166023,-1000.0,0.00019621,2]
[362161781,1748044166047,-350.0,0.00019695,2]
[362161782,1748044166069,-1000.0,0.0001971,2]
[362161783,1748044166092,-500.0,0.00019753,2]
[362161784,1748044166114,-1929.34,0.00019766,2]
[362161785,1748044166137,-1680.0,0.00019791,2]
[362161786,1748044166159,-847.12066958,0.00019826,2]
[362161787,1748044166185,-200.0,0.0001984,2]
[362161788,1748044166207,-150.0,0.00019853,2]
[362161789,1748044166229,-237.33970875,0.00019853,2]
[362161790,1748044166252,-500.0,0.00019853,2]
[362161791,1748044166275,-226.32,0.00019856,2]
[362161792,1748044166297,-610.40634543,0.00019873,2]
[362161793,1748044166319,-175.56018596,0.0001988,2]
[362161794,1748044166341,-500.0,0.0001988,2]
[362161795,1748044166363,-722.0862,0.000199,2]
[362161796,1748044166387,-166.55221696,0.000199,2]
[362161797,1748044166409,-410.23297324,0.000199,2]
[362161798,1748044166440,-163.99669532,0.000199,2]
[362161799,1748044166462,-510.4902,0.000199,2]